fUST/lending_fUST_20260608
["ID","MTS","AMOUNT","RATE_DAILY","PERIOD"]
[424422688,1780869038000,-500.0,0.0001863,2]
[424422673,1780869038000,-500.0,0.0001863,2]
[424422679,1780869038000,-500.0,0.0001863,2]
[424422646,1780869038000,-251.18261102,0.00018461,2]
[424422647,1780869038000,-191.98151249,0.00018531,2]
[424422653,1780869038000,-183.87749764,0.00018531,2]
[424422648,1780869038000,-152.03752476,0.00018531,2]
[424422651,1780869038000,-189.70869914,0.00018531,2]
[424422649,1780869038000,-194.26414762,0.00018531,2]
[424422650,1780869038000,-200.36174232,0.00018531,2]
[424422652,1780869038000,-201.12205778,0.00018531,2]
[424422654,1780869038000,-163.2658206,0.00018531,2]
[424422655,1780869038000,-153.59021773,0.00018548,2]
[424422657,1780869038000,-159.95073808,0.00018548,2]
[424422658,1780869038000,-199.86417827,0.00018548,2]
[424422656,1780869038000,-209.07600213,0.00018548,2]
[424422644,1780869038000,-151.0,0.00018392,2]
[424422668,1780869038000,-524.64849091,0.0001863,2]
[424422667,1780869038000,-500.0,0.0001863,2]
[424422660,1780869038000,-500.0,0.0001863,2]
[424422661,1780869038000,-500.0,0.0001863,2]
[424422662,1780869038000,-500.0,0.0001863,2]
[424422666,1780869038000,-314.05410148,0.0001863,2]
[424422664,1780869038000,-500.0,0.0001863,2]
[424422663,1780869038000,-500.0,0.0001863,2]
[424422665,1780869038000,-500.0,0.0001863,2]
[424422659,1780869038000,-180.22648281,0.00018583,2]
[424422669,1780869038000,-151.5,0.0001863,2]
[424422671,1780869038000,-500.0,0.0001863,2]
[424422672,1780869038000,-500.0,0.0001863,2]
[424422742,1780869039000,-500.0,0.00019177,2]
[424422743,1780869039000,-596.88254779,0.00019177,2]
[424422733,1780869039000,-828.0,0.00019015,2]
[424422748,1780869039000,-500.0,0.00019178,2]
[424422745,1780869039000,-500.0,0.00019178,2]
[424422749,1780869039000,-500.0,0.00019178,2]
[424422732,1780869039000,-247619.13315997,0.00019,2]
[424422740,1780869039000,-500.0,0.00019177,2]
[424422741,1780869039000,-500.0,0.00019177,2]
[424422737,1780869039000,-500.0,0.00019177,2]
[424422734,1780869039000,-200.0,0.00019099,2]
[424422746,1780869039000,-518.08124511,0.00019178,2]
[424422739,1780869039000,-500.0,0.00019177,2]
[424422744,1780869039000,-154.6217287,0.00019178,2]
[424422761,1780869039000,-698.12,0.00019178,2]
[424422738,1780869039000,-500.0,0.00019177,2]
[424422750,1780869039000,-500.0,0.00019178,2]
[424422751,1780869039000,-500.0,0.00019178,2]
[424422760,1780869039000,-500.0,0.00019178,2]
[424422758,1780869039000,-500.0,0.00019178,2]
[424422762,1780869039000,-500.0,0.00019178,2]
[424422759,1780869039000,-500.0,0.00019178,2]
[424422763,1780869039000,-937.55,0.00019178,2]
[424422766,1780869039000,-867.15,0.00019178,2]
[424422765,1780869039000,-643.92,0.00019178,2]
[424422774,1780869039000,-1603.72,0.00019178,2]
[424422764,1780869039000,-500.0,0.00019178,2]
[424422747,1780869039000,-1473.25,0.00019178,2]
[424422729,1780869039000,-555.958705,0.00018999,2]
[424422705,1780869039000,-151.0,0.000189,2]
[424422731,1780869039000,-187147.74776626,0.00019,2]
[424422706,1780869039000,-151.0,0.000189,2]
[424422703,1780869039000,-151.0,0.000189,2]
[424422708,1780869039000,-200.0,0.00018903,2]
[424422707,1780869039000,-151.0,0.000189,2]
[424422709,1780869039000,-500.0,0.00018904,2]
[424422704,1780869039000,-151.0,0.000189,2]
[424422710,1780869039000,-500.0,0.00018904,2]
[424422712,1780869039000,-500.0,0.00018904,2]
[424422711,1780869039000,-500.0,0.00018904,2]
[424422715,1780869039000,-209.71611797,0.00018904,2]
[424422720,1780869039000,-151.0,0.0001894,2]
[424422723,1780869039000,-500.0,0.00018999,2]
[424422721,1780869039000,-500.0,0.0001894,2]
[424422714,1780869039000,-250.28998332,0.00018904,2]
[424422713,1780869039000,-151.5,0.00018904,2]
[424422716,1780869039000,-151.5,0.00018904,2]
[424422719,1780869039000,-181.4857161,0.00018904,2]
[424422717,1780869039000,-151.5,0.00018904,2]
[424422722,1780869039000,-500.0,0.00018998,2]
[424422718,1780869039000,-151.5,0.00018904,2]
[424422724,1780869039000,-500.0,0.00018999,2]
[424422728,1780869039000,-500.0,0.00018999,2]
[424422736,1780869039000,-30000.0,0.000191,2]
[424422735,1780869039000,-500.0,0.00019099,2]
[424422725,1780869039000,-286.52241399,0.00018999,2]
[424422730,1780869039000,-527.82431953,0.00018999,2]
[424422727,1780869039000,-500.0,0.00018999,2]
[424422726,1780869039000,-500.0,0.00018999,2]
[424422769,1780869039000,-500.0,0.00019178,2]
[424422772,1780869039000,-500.0,0.00019178,2]
[424422773,1780869039000,-500.0,0.00019178,2]
[424422804,1780869039000,-500.0,0.00019178,2]
[424422803,1780869039000,-1876.89,0.00019178,2]
[424422806,1780869039000,-500.0,0.00019178,2]
[424422807,1780869039000,-500.0,0.00019178,2]
[424422810,1780869039000,-500.0,0.00019178,2]
[424422814,1780869039000,-579.03,0.00019178,2]
[424422813,1780869039000,-500.0,0.00019178,2]
[424422809,1780869039000,-884.57,0.00019178,2]
[424422808,1780869039000,-1467.89,0.00019178,2]
[424422812,1780869039000,-300.0,0.00019178,2]
[424422811,1780869039000,-3001.14,0.00019178,2]
[424422815,1780869039000,-500.0,0.00019178,2]
[424422820,1780869039000,-500.0,0.00019178,2]
[424422805,1780869039000,-500.0,0.00019178,2]
[424422821,1780869039000,-500.0,0.00019178,2]
[424422817,1780869039000,-500.0,0.00019178,2]
[424422824,1780869039000,-500.0,0.00019178,2]
[424422822,1780869039000,-500.0,0.00019178,2]
[424422826,1780869039000,-805.5,0.00019178,2]
[424422816,1780869039000,-500.0,0.00019178,2]
[424422825,1780869039000,-500.0,0.00019178,2]
[424422823,1780869039000,-1345.16,0.00019178,2]
[424422828,1780869039000,-500.0,0.00019178,2]
[424422830,1780869039000,-500.0,0.00019178,2]
[424422832,1780869039000,-500.0,0.00019178,2]
[424422831,1780869039000,-500.0,0.00019178,2]
[424422833,1780869039000,-688.33,0.00019178,2]
[424422768,1780869039000,-23547.2885563,0.00019178,2]
[424422819,1780869039000,-500.0,0.00019178,2]
[424422802,1780869039000,-1497.15,0.00019178,2]
[424422818,1780869039000,-500.0,0.00019178,2]
[424422792,1780869039000,-500.0,0.00019178,2]
[424422775,1780869039000,-500.0,0.00019178,2]
[424422799,1780869039000,-500.0,0.00019178,2]
[424422767,1780869039000,-500.0,0.00019178,2]
[424422770,1780869039000,-500.0,0.00019178,2]
[424422771,1780869039000,-574.63,0.00019178,2]
[424422779,1780869039000,-500.0,0.00019178,2]
[424422776,1780869039000,-500.0,0.00019178,2]
[424422787,1780869039000,-500.0,0.00019178,2]
[424422786,1780869039000,-578.4,0.00019178,2]
[424422785,1780869039000,-1374.44,0.00019178,2]
[424422782,1780869039000,-164.05576265,0.00019178,2]
[424422788,1780869039000,-761.21,0.00019178,2]
[424422778,1780869039000,-500.0,0.00019178,2]
[424422780,1780869039000,-576.1,0.00019178,2]
[424422777,1780869039000,-500.0,0.00019178,2]
[424422781,1780869039000,-500.0,0.00019178,2]
[424422795,1780869039000,-563.94984382,0.00019178,2]
[424422784,1780869039000,-500.0,0.00019178,2]
[424422797,1780869039000,-281.29643196,0.00019178,2]
[424422801,1780869039000,-500.0,0.00019178,2]
[424422798,1780869039000,-500.0,0.00019178,2]
[424422796,1780869039000,-703.88,0.00019178,2]
[424422793,1780869039000,-1388.69,0.00019178,2]
[424422791,1780869039000,-500.0,0.00019178,2]
[424422790,1780869039000,-617.4,0.00019178,2]
[424422800,1780869039000,-932.05,0.00019178,2]
[424422789,1780869039000,-857.43,0.00019178,2]
[424422783,1780869039000,-151.0,0.00019178,2]
[424422794,1780869039000,-1079.58,0.00019178,2]
[424422887,1780869040000,-1264.47,0.00019178,2]
[424422891,1780869040000,-3603.39,0.00019178,2]
[424422888,1780869040000,-3109.47,0.00019178,2]
[424422884,1780869040000,-500.0,0.00019178,2]
[424422889,1780869040000,-500.0,0.00019178,2]
[424422883,1780869040000,-4267.24,0.00019178,2]
[424422885,1780869040000,-500.0,0.00019178,2]
[424422892,1780869040000,-500.0,0.00019178,2]
[424422882,1780869040000,-500.0,0.00019178,2]
[424422878,1780869040000,-862.53,0.00019178,2]
[424422876,1780869040000,-797.63,0.00019178,2]
[424422890,1780869040000,-6523.99,0.00019178,2]
[424422881,1780869040000,-500.0,0.00019178,2]
[424422886,1780869040000,-988.87,0.00019178,2]
[424422906,1780869040000,-500.0,0.00019178,2]
[424422895,1780869040000,-500.0,0.00019178,2]
[424422894,1780869040000,-1871.94,0.00019178,2]
[424422902,1780869040000,-788.78,0.00019178,2]
[424422896,1780869040000,-500.0,0.00019178,2]
[424422901,1780869040000,-613.15,0.00019178,2]
[424422900,1780869040000,-1213.26,0.00019178,2]
[424422897,1780869040000,-500.0,0.00019178,2]
[424422898,1780869040000,-500.0,0.00019178,2]
[424422904,1780869040000,-500.0,0.00019178,2]
[424422903,1780869040000,-500.0,0.00019178,2]
[424422899,1780869040000,-500.0,0.00019178,2]
[424422905,1780869040000,-537.72,0.00019178,2]
[424422877,1780869040000,-4969.84,0.00019178,2]
[424422893,1780869040000,-44003.63,0.00019178,2]
[424422880,1780869040000,-640.9,0.00019178,2]
[424422839,1780869040000,-500.0,0.00019178,2]
[424422879,1780869040000,-622.67,0.00019178,2]
[424422911,1780869040000,-1152.93,0.00019178,2]
[424422841,1780869040000,-1522.61,0.00019178,2]
[424422843,1780869040000,-990.14,0.00019178,2]
[424422845,1780869040000,-500.0,0.00019178,2]
[424422834,1780869040000,-721.91,0.00019178,2]
[424422835,1780869040000,-833.24,0.00019178,2]
[424422836,1780869040000,-646.17,0.00019178,2]
[424422847,1780869040000,-500.0,0.00019178,2]
[424422850,1780869040000,-500.0,0.00019178,2]
[424422860,1780869040000,-500.0,0.00019178,2]
[424422849,1780869040000,-500.0,0.00019178,2]
[424422851,1780869040000,-500.0,0.00019178,2]
[424422862,1780869040000,-500.0,0.00019178,2]
[424422863,1780869040000,-986.63,0.00019178,2]
[424422866,1780869040000,-600.18,0.00019178,2]
[424422865,1780869040000,-500.0,0.00019178,2]
[424422864,1780869040000,-576.57,0.00019178,2]
[424422857,1780869040000,-985.93,0.00019178,2]
[424422853,1780869040000,-1865.65,0.00019178,2]
[424422859,1780869040000,-500.0,0.00019178,2]
[424422867,1780869040000,-500.0,0.00019178,2]
[424422855,1780869040000,-500.0,0.00019178,2]
[424422868,1780869040000,-500.0,0.00019178,2]
[424422871,1780869040000,-500.0,0.00019178,2]
[424422869,1780869040000,-521.63,0.00019178,2]
[424422874,1780869040000,-673.65,0.00019178,2]
[424422870,1780869040000,-560.92214282,0.00019178,2]
[424422873,1780869040000,-500.0,0.00019178,2]
[424422875,1780869040000,-500.0,0.00019178,2]
[424422872,1780869040000,-500.0,0.00019178,2]
[424422915,1780869040000,-500.0,0.00019178,2]
[424422907,1780869040000,-1501.29,0.00019178,2]
[424422913,1780869040000,-500.0,0.00019178,2]
[424422945,1780869040000,-5246.63,0.00019178,2]
[424422957,1780869040000,-202.47263284,0.00019178,2]
[424422948,1780869040000,-862.61,0.00019178,2]
[424422947,1780869040000,-500.0,0.00019178,2]
[424422946,1780869040000,-1372.18,0.00019178,2]
[424422949,1780869040000,-2308.4,0.00019178,2]
[424422956,1780869040000,-880.95,0.00019178,2]
[424422953,1780869040000,-500.0,0.00019178,2]
[424422951,1780869040000,-500.0,0.00019178,2]
[424422950,1780869040000,-964.98,0.00019178,2]
[424422954,1780869040000,-4354.0,0.00019178,2]
[424422955,1780869040000,-500.0,0.00019178,2]
[424422952,1780869040000,-7625.04,0.00019178,2]
[424422941,1780869040000,-500.0,0.00019178,2]
[424422970,1780869040000,-2830.1,0.00019178,2]
[424422958,1780869040000,-500.0,0.00019178,2]
[424422959,1780869040000,-500.0,0.00019178,2]
[424422969,1780869040000,-2961.34,0.00019178,2]
[424422960,1780869040000,-500.0,0.00019178,2]
[424422962,1780869040000,-540.95,0.00019178,2]
[424422964,1780869040000,-500.0,0.00019178,2]
[424422963,1780869040000,-3841.92,0.00019178,2]
[424422966,1780869040000,-374.247061,0.00019178,2]
[424422967,1780869040000,-9624.35,0.00019178,2]
[424422968,1780869040000,-2488.17,0.00019178,2]
[424422965,1780869040000,-500.0,0.00019178,2]
[424422972,1780869040000,-5811.1,0.00019178,2]
[424422973,1780869040000,-500.0,0.00019178,2]
[424422961,1780869040000,-500.0,0.00019178,2]
[424422940,1780869040000,-500.0,0.00019178,2]
[424422971,1780869040000,-10043.68,0.00019178,2]
[424422943,1780869040000,-500.0,0.00019178,2]
[424422909,1780869040000,-500.0,0.00019178,2]
[424422917,1780869040000,-500.0,0.00019178,2]
[424422914,1780869040000,-5189.78,0.00019178,2]
[424422908,1780869040000,-500.0,0.00019178,2]
[424422910,1780869040000,-591.61,0.00019178,2]
[424422918,1780869040000,-2804.88,0.00019178,2]
[424422912,1780869040000,-3026.06,0.00019178,2]
[424422920,1780869040000,-807.97,0.00019178,2]
[424422938,1780869040000,-500.0,0.00019178,2]
[424422932,1780869040000,-3875.45,0.00019178,2]
[424422930,1780869040000,-936.47,0.00019178,2]
[424422919,1780869040000,-501.84,0.00019178,2]
[424422923,1780869040000,-500.0,0.00019178,2]
[424422924,1780869040000,-500.0,0.00019178,2]
[424422931,1780869040000,-1274.54,0.00019178,2]
[424422922,1780869040000,-500.0,0.00019178,2]
[424422942,1780869040000,-10328.7,0.00019178,2]
[424422921,1780869040000,-454.23014549,0.00019178,2]
[424422939,1780869040000,-500.0,0.00019178,2]
[424422937,1780869040000,-700.14,0.00019178,2]
[424422935,1780869040000,-2728.23,0.00019178,2]
[424422936,1780869040000,-500.0,0.00019178,2]
[424422933,1780869040000,-450.27176919,0.00019178,2]
[424422934,1780869040000,-579.14,0.00019178,2]
[424422929,1780869040000,-500.0,0.00019178,2]
[424422926,1780869040000,-500.0,0.00019178,2]
[424422925,1780869040000,-500.0,0.00019178,2]
[424422928,1780869040000,-500.0,0.00019178,2]
[424422927,1780869040000,-500.0,0.00019178,2]
[424422944,1780869040000,-500.0,0.00019178,2]
[424423010,1780869041000,-2186.74,0.00019239,2]
[424423015,1780869041000,-152.0,0.00019343,30]
[424423016,1780869041000,-300.17061541,0.00019359,2]
[424423013,1780869041000,-317.87204038,0.00019282,2]
[424423012,1780869041000,-1000.0,0.00019258,2]
[424423004,1780869041000,-201.832069,0.00019178,2]
[424423011,1780869041000,-444.0,0.00019239,2]
[424423009,1780869041000,-201.832063,0.00019178,2]
[424423014,1780869041000,-300.0284359,0.00019303,2]
[424423008,1780869041000,-201.832069,0.00019178,2]
[424423005,1780869041000,-201.832069,0.00019178,2]
[424423007,1780869041000,-201.832069,0.00019178,2]
[424423026,1780869041000,-213.67866084,0.00019391,2]
[424423030,1780869041000,-418.15200425,0.00019391,2]
[424423021,1780869041000,-379.41739828,0.00019374,2]
[424423022,1780869041000,-153.37198363,0.00019374,2]
[424423019,1780869041000,-218.12931729,0.00019374,2]
[424423025,1780869041000,-326.5316412,0.00019374,2]
[424423017,1780869041000,-304.07504952,0.00019374,2]
[424423024,1780869041000,-154.7536359,0.00019374,2]
[424423018,1780869041000,-388.52829523,0.00019374,2]
[424423020,1780869041000,-400.72348463,0.00019374,2]
[424423029,1780869041000,-319.90147616,0.00019391,2]
[424423027,1780869041000,-307.18043545,0.00019391,2]
[424423031,1780869041000,-197.56842621,0.00019391,2]
[424423028,1780869041000,-187.78908905,0.00019391,2]
[424423003,1780869041000,-201.832069,0.00019178,2]
[424423023,1780869041000,-367.75499528,0.00019374,2]
[424423002,1780869041000,-201.832069,0.00019178,2]
[424422982,1780869041000,-1468.1,0.00019178,2]
[424422996,1780869041000,-201.832069,0.00019178,2]
[424423032,1780869041000,-399.72835653,0.00019391,2]
[424422976,1780869041000,-430.40096359,0.00019178,2]
[424422989,1780869041000,-543.08,0.00019178,2]
[424422977,1780869041000,-11131.41,0.00019178,2]
[424422978,1780869041000,-500.0,0.00019178,2]
[424422992,1780869041000,-201.832069,0.00019178,2]
[424422975,1780869041000,-530.91,0.00019178,2]
[424422974,1780869041000,-500.0,0.00019178,2]
[424422994,1780869041000,-201.832069,0.00019178,2]
[424422990,1780869041000,-201.832069,0.00019178,2]
[424422979,1780869041000,-869.63,0.00019178,2]
[424422986,1780869041000,-907.17,0.00019178,2]
[424422987,1780869041000,-604.55,0.00019178,2]
[424422984,1780869041000,-800.51,0.00019178,2]
[424422980,1780869041000,-500.0,0.00019178,2]
[424422991,1780869041000,-201.832069,0.00019178,2]
[424422981,1780869041000,-1984.29,0.00019178,2]
[424422983,1780869041000,-500.0,0.00019178,2]
[424422985,1780869041000,-629.17,0.00019178,2]
[424422988,1780869041000,-500.0,0.00019178,2]
[424422993,1780869041000,-201.832069,0.00019178,2]
[424422995,1780869041000,-201.832069,0.00019178,2]
[424422997,1780869041000,-201.832069,0.00019178,2]
[424422998,1780869041000,-201.832069,0.00019178,2]
[424423000,1780869041000,-201.832069,0.00019178,2]
[424422999,1780869041000,-201.832069,0.00019178,2]
[424423001,1780869041000,-201.832069,0.00019178,2]
[424423006,1780869041000,-201.832069,0.00019178,2]
[424423034,1780869041000,-205.69855637,0.00019427,2]
[424423038,1780869041000,-1473.25,0.00019452,2]
[424423094,1780869041000,-500.0,0.00019452,2]
[424423077,1780869041000,-703.88,0.00019452,2]
[424423079,1780869041000,-500.0,0.00019452,2]
[424423078,1780869041000,-500.0,0.00019452,2]
[424423066,1780869041000,-500.0,0.00019452,2]
[424423068,1780869041000,-578.4,0.00019452,2]
[424423069,1780869041000,-500.0,0.00019452,2]
[424423075,1780869041000,-1388.69,0.00019452,2]
[424423074,1780869041000,-500.0,0.00019452,2]
[424423070,1780869041000,-761.21,0.00019452,2]
[424423071,1780869041000,-857.43,0.00019452,2]
[424423076,1780869041000,-1079.58,0.00019452,2]
[424423072,1780869041000,-617.4,0.00019452,2]
[424423080,1780869041000,-932.05,0.00019452,2]
[424423091,1780869041000,-500.0,0.00019452,2]
[424423081,1780869041000,-500.0,0.00019452,2]
[424423084,1780869041000,-199.95235739,0.00019452,2]
[424423082,1780869041000,-1497.15,0.00019452,2]
[424423083,1780869041000,-1876.89,0.00019452,2]
[424423092,1780869041000,-579.03,0.00019452,2]
[424423093,1780869041000,-500.0,0.00019452,2]
[424423086,1780869041000,-500.0,0.00019452,2]
[424423088,1780869041000,-884.57,0.00019452,2]
[424423089,1780869041000,-500.0,0.00019452,2]
[424423085,1780869041000,-500.0,0.00019452,2]
[424423090,1780869041000,-3001.14,0.00019452,2]
[424423087,1780869041000,-1467.89,0.00019452,2]
[424423033,1780869041000,-317.87204038,0.00019417,2]
[424423067,1780869041000,-1374.44,0.00019452,2]
[424423063,1780869041000,-500.0,0.00019452,2]
[424423073,1780869041000,-500.0,0.00019452,2]
[424423062,1780869041000,-500.0,0.00019452,2]
[424423064,1780869041000,-576.1,0.00019452,2]
[424423036,1780869041000,-225.24035897,0.00019427,2]
[424423037,1780869041000,-500.0,0.00019452,2]
[424423039,1780869041000,-500.0,0.00019452,2]
[424423041,1780869041000,-500.0,0.00019452,2]
[424423051,1780869041000,-867.15,0.00019452,2]
[424423040,1780869041000,-500.0,0.00019452,2]
[424423053,1780869041000,-500.0,0.00019452,2]
[424423052,1780869041000,-500.0,0.00019452,2]
[424423043,1780869041000,-500.0,0.00019452,2]
[424423047,1780869041000,-500.0,0.00019452,2]
[424423042,1780869041000,-500.0,0.00019452,2]
[424423046,1780869041000,-698.12,0.00019452,2]
[424423045,1780869041000,-500.0,0.00019452,2]
[424423035,1780869041000,-189.04167956,0.00019427,2]
[424423050,1780869041000,-643.92,0.00019452,2]
[424423044,1780869041000,-500.0,0.00019452,2]
[424423061,1780869041000,-500.0,0.00019452,2]
[424423065,1780869041000,-500.0,0.00019452,2]
[424423058,1780869041000,-1603.72,0.00019452,2]
[424423055,1780869041000,-574.63,0.00019452,2]
[424423056,1780869041000,-500.0,0.00019452,2]
[424423060,1780869041000,-500.0,0.00019452,2]
[424423057,1780869041000,-500.0,0.00019452,2]
[424423054,1780869041000,-500.0,0.00019452,2]
[424423049,1780869041000,-500.0,0.00019452,2]
[424423048,1780869041000,-937.55,0.00019452,2]
[424423059,1780869041000,-558.42258203,0.00019452,2]
[424423137,1780869042000,-673.65,0.00019452,2]
[424423135,1780869042000,-500.0,0.00019452,2]
[424423131,1780869042000,-500.0,0.00019452,2]
[424423127,1780869042000,-986.63,0.00019452,2]
[424423129,1780869042000,-500.0,0.00019452,2]
[424423128,1780869042000,-576.57,0.00019452,2]
[424423130,1780869042000,-600.18,0.00019452,2]
[424423125,1780869042000,-500.0,0.00019452,2]
[424423134,1780869042000,-500.0,0.00019452,2]
[424423126,1780869042000,-360.07105223,0.00019452,2]
[424423136,1780869042000,-500.0,0.00019452,2]
[424423132,1780869042000,-500.0,0.00019452,2]
[424423139,1780869042000,-797.63,0.00019452,2]
[424423162,1780869042000,-3603.39,0.00019452,2]
[424423149,1780869042000,-862.53,0.00019452,2]
[424423148,1780869042000,-4969.84,0.00019452,2]
[424423150,1780869042000,-622.67,0.00019452,2]
[424423152,1780869042000,-500.0,0.00019452,2]
[424423151,1780869042000,-640.9,0.00019452,2]
[424423153,1780869042000,-500.0,0.00019452,2]
[424423157,1780869042000,-988.87,0.00019452,2]
[424423155,1780869042000,-500.0,0.00019452,2]
[424423154,1780869042000,-4267.24,0.00019452,2]
[424423158,1780869042000,-1264.47,0.00019452,2]
[424423156,1780869042000,-492.2139605,0.00019452,2]
[424423124,1780869042000,-484.4471744,0.00019452,2]
[424423138,1780869042000,-500.0,0.00019452,2]
[424423123,1780869042000,-985.93,0.00019452,2]
[424423160,1780869042000,-500.0,0.00019452,2]
[424423122,1780869042000,-500.0,0.00019452,2]
[424423102,1780869042000,-500.0,0.00019452,2]
[424423104,1780869042000,-805.5,0.00019452,2]
[424423095,1780869042000,-500.0,0.00019452,2]
[424423103,1780869042000,-500.0,0.00019452,2]
[424423106,1780869042000,-500.0,0.00019452,2]
[424423101,1780869042000,-1345.16,0.00019452,2]
[424423105,1780869042000,-500.0,0.00019452,2]
[424423099,1780869042000,-500.0,0.00019452,2]
[424423098,1780869042000,-500.0,0.00019452,2]
[424423107,1780869042000,-500.0,0.00019452,2]
[424423096,1780869042000,-500.0,0.00019452,2]
[424423100,1780869042000,-500.0,0.00019452,2]
[424423097,1780869042000,-500.0,0.00019452,2]
[424423108,1780869042000,-500.0,0.00019452,2]
[424423119,1780869042000,-500.0,0.00019452,2]
[424423110,1780869042000,-721.91,0.00019452,2]
[424423109,1780869042000,-688.33,0.00019452,2]
[424423112,1780869042000,-646.17,0.00019452,2]
[424423120,1780869042000,-500.0,0.00019452,2]
[424423111,1780869042000,-833.24,0.00019452,2]
[424423121,1780869042000,-1865.65,0.00019452,2]
[424423114,1780869042000,-1522.61,0.00019452,2]
[424423113,1780869042000,-500.0,0.00019452,2]
[424423118,1780869042000,-500.0,0.00019452,2]
[424423117,1780869042000,-500.0,0.00019452,2]
[424423115,1780869042000,-990.14,0.00019452,2]
[424423116,1780869042000,-500.0,0.00019452,2]
[424423133,1780869042000,-521.63,0.00019452,2]
[424423161,1780869042000,-6523.99,0.00019452,2]
[424423159,1780869042000,-3109.47,0.00019452,2]
[424423163,1780869042000,-500.0,0.00019452,2]
[424423195,1780869042000,-500.0,0.00019452,2]
[424423188,1780869042000,-2804.88,0.00019452,2]
[424423196,1780869042000,-500.0,0.00019452,2]
[424423200,1780869042000,-1274.54,0.00019452,2]
[424423210,1780869042000,-10328.7,0.00019452,2]
[424423211,1780869042000,-500.0,0.00019452,2]
[424423199,1780869042000,-936.47,0.00019452,2]
[424423201,1780869042000,-3875.45,0.00019452,2]
[424423202,1780869042000,-579.14,0.00019452,2]
[424423208,1780869042000,-500.0,0.00019452,2]
[424423206,1780869042000,-500.0,0.00019452,2]
[424423204,1780869042000,-500.0,0.00019452,2]
[424423203,1780869042000,-2728.23,0.00019452,2]
[424423207,1780869042000,-587.2622137,0.00019452,2]
[424423209,1780869042000,-500.0,0.00019452,2]
[424423205,1780869042000,-700.14,0.00019452,2]
[424423213,1780869042000,-5246.63,0.00019452,2]
[424423223,1780869042000,-500.0,0.00019452,2]
[424423214,1780869042000,-1372.18,0.00019452,2]
[424423212,1780869042000,-500.0,0.00019452,2]
[424423224,1780869042000,-880.95,0.00019452,2]
[424423215,1780869042000,-500.0,0.00019452,2]
[424423220,1780869042000,-7625.04,0.00019452,2]
[424423219,1780869042000,-500.0,0.00019452,2]
[424423221,1780869042000,-500.0,0.00019452,2]
[424423222,1780869042000,-4354.0,0.00019452,2]
[424423217,1780869042000,-2308.4,0.00019452,2]
[424423193,1780869042000,-500.0,0.00019452,2]
[424423190,1780869042000,-807.97,0.00019452,2]
[424423164,1780869042000,-44003.63,0.00019452,2]
[424423197,1780869042000,-500.0,0.00019452,2]
[424423198,1780869042000,-500.0,0.00019452,2]
[424423174,1780869042000,-500.0,0.00019452,2]
[424423165,1780869042000,-1871.94,0.00019452,2]
[424423169,1780869042000,-500.0,0.00019452,2]
[424423218,1780869042000,-964.98,0.00019452,2]
[424423166,1780869042000,-500.0,0.00019452,2]
[424423167,1780869042000,-500.0,0.00019452,2]